fUST/lending_fUST_20251102
["ID","MTS","AMOUNT","RATE_DAILY","PERIOD"]
[392843465,1762037443440,-500.0,0.00036986,8]
[392843466,1762037443449,-500.0,0.00036986,8]
[392843467,1762037443458,-510.29688786,0.00036986,8]
[392843468,1762037443468,-500.0,0.00036986,8]
[392843469,1762037443478,-500.0,0.00036986,8]
[392843470,1762037443488,-500.0,0.00036986,8]
[392843471,1762037443497,-501.2980713,0.00036986,8]
[392843472,1762037443506,-501.96091986,0.00036986,8]
[392843473,1762037443620,-500.0,0.00036986,8]
[392843474,1762037443630,-500.0,0.00036986,8]
[392843475,1762037443640,-500.0,0.00036986,8]
[392843476,1762037443649,-502.74645921,0.00036986,8]
[392843477,1762037443660,-502.40884519,0.00036986,8]
[392843478,1762037443669,-500.0,0.00036986,8]
[392843479,1762037443678,-502.34643406,0.00036986,8]
[392843480,1762037443687,-500.0,0.00036986,8]
[392843481,1762037443696,-500.0,0.00036986,8]
[392843482,1762037443705,-500.0,0.00036986,8]
[392843483,1762037443714,-500.0,0.00036986,8]
[392843484,1762037443723,-500.0,0.00036986,8]
[392843485,1762037443732,-501.95583404,0.00036986,8]
[392843486,1762037443742,-503.98143683,0.00036986,8]
[392843487,1762037443751,-500.0,0.00036986,8]
[392843488,1762037443760,-500.0,0.00036986,8]
[392843489,1762037443770,-500.0,0.00036986,8]
[392843490,1762037443779,-501.56377697,0.00036986,8]
[392843491,1762037443788,-502.25670641,0.00036986,8]
[392843492,1762037443798,-500.0,0.00036986,8]
[392843493,1762037443807,-500.0,0.00036986,8]
[392843494,1762037443816,-502.01396133,0.00036986,8]
[392843495,1762037443825,-500.0,0.00036986,8]
[392843496,1762037443835,-529.11725851,0.00036986,8]
[392843497,1762037443846,-500.0,0.00036986,8]
[392843498,1762037443856,-500.0,0.00036986,8]
[392843499,1762037443865,-502.07475375,0.00036986,8]
[392843500,1762037443875,-504.44996609,0.00036986,8]
[392843501,1762037443885,-501.75403448,0.00036986,8]
[392843502,1762037443894,-500.0,0.00036986,8]
[392843503,1762037443904,-500.0,0.00036986,8]
[392843504,1762037443913,-508.55662748,0.00036986,8]
[392843505,1762037443923,-500.0,0.00036986,8]
[392843506,1762037443932,-502.62394323,0.00036986,8]
[392843507,1762037443942,-500.0,0.00036986,8]
[392843508,1762037443952,-501.94550222,0.00036986,8]
[392843509,1762037443961,-500.0,0.00036986,8]
[392843510,1762037443970,-505.76635963,0.00036986,8]
[392843511,1762037443979,-501.45000683,0.00036986,8]
[392843512,1762037443988,-501.47298368,0.00036986,8]
[392843513,1762037443997,-505.20422378,0.00036986,8]
[392843514,1762037444007,-500.0,0.00036986,7]
[392843515,1762037444016,-502.34033204,0.00036986,8]
[392843516,1762037444025,-500.0,0.00036986,8]
[392843517,1762037444034,-500.0,0.00036986,8]
[392843518,1762037444043,-501.78144309,0.00036986,8]
[392843519,1762037444053,-500.0,0.00036986,8]
[392843520,1762037444062,-500.9774981,0.00036986,8]
[392843521,1762037444075,-502.63768313,0.00036986,8]
[392843522,1762037444084,-500.0,0.00036986,8]
[392843523,1762037444094,-500.0,0.00036986,8]
[392843524,1762037444103,-500.0,0.00036986,8]
[392843525,1762037444114,-501.0259689,0.00036986,2]
[392843526,1762037444123,-503.06002398,0.00036986,8]
[392843527,1762037444132,-500.0,0.00036986,8]
[392843528,1762037444142,-509.24763933,0.00036986,8]
[392843529,1762037444151,-500.0,0.00036986,8]
[392843530,1762037444161,-502.14604529,0.00036986,8]
[392843531,1762037444170,-503.13744774,0.00036986,8]
[392843532,1762037444179,-639.11,0.00036986,8]
[392843533,1762037444188,-500.0,0.00036986,8]
[392843534,1762037444197,-500.0,0.00036986,8]
[392843535,1762037444207,-503.27099645,0.00036986,8]
[392843536,1762037444216,-554.96,0.00036986,3]
[392843537,1762037444225,-500.0,0.00036986,8]
[392843538,1762037444234,-500.0,0.00036986,8]
[392843539,1762037444243,-500.0,0.00036986,8]
[392843540,1762037444252,-502.750341,0.00036986,8]
[392843541,1762037444261,-500.0,0.00036986,8]
[392843542,1762037444270,-500.0,0.00036986,8]
[392843543,1762037444279,-502.50837423,0.00036986,8]
[392843544,1762037444289,-500.0,0.00036986,8]
[392843545,1762037444298,-500.0,0.00036986,8]
[392843546,1762037444307,-503.08790311,0.00036986,8]
[392843547,1762037444316,-500.0,0.00036986,8]
[392843548,1762037444326,-503.0323733,0.00036986,8]
[392843549,1762037444335,-500.0,0.00036986,8]
[392843550,1762037444344,-500.0,0.00036986,8]
[392843551,1762037444353,-495.59033697,0.00036986,8]
[392843552,1762037444363,-259.17618124,0.00036986,8]
[392843553,1762037444372,-520.47454384,0.00036986,8]
[392843554,1762037444381,-503.00582004,0.00036986,8]
[392843555,1762037444391,-506.6208984,0.00036986,8]
[392843556,1762037444400,-500.0,0.00036986,8]
[392843557,1762037444413,-500.0,0.00036986,8]
[392843558,1762037444423,-500.0,0.00036986,8]
[392843559,1762037444432,-500.0,0.00036986,8]
[392843560,1762037444441,-500.0,0.00036986,8]
[392843561,1762037444451,-500.0,0.00036986,8]
[392843562,1762037444460,-501.23444859,0.00036986,8]
[392843563,1762037444469,-501.57033728,0.00036986,8]
[392843564,1762037444478,-502.6947019,0.00036986,8]
[392843565,1762037444488,-500.0,0.00036986,8]
[392843566,1762037444497,-501.22665998,0.00036986,8]
[392843567,1762037444506,-500.0,0.00036986,8]
[392843568,1762037444516,-404.0,0.00036986,8]
[392843569,1762037444526,-500.0,0.00036986,8]
[392843570,1762037444537,-500.0,0.00036986,8]
[392843571,1762037444547,-505.62482749,0.00036986,8]
[392843572,1762037444556,-607.71210824,0.00036986,8]
[392843573,1762037444566,-504.93294745,0.00036986,8]
[392843574,1762037444575,-502.11399582,0.00036986,8]
[392843575,1762037444585,-500.0,0.00036986,8]
[392843576,1762037444594,-501.39569142,0.00036986,8]
[392843577,1762037444603,-502.17075411,0.00036986,8]
[392843578,1762037444613,-198.6916265,0.00036986,8]
[392843579,1762037444622,-500.7901224,0.00036986,8]
[392843580,1762037444631,-574.4,0.00036986,8]
[392843581,1762037444640,-502.19136655,0.00036986,8]
[392843582,1762037444649,-501.98298326,0.00036986,8]
[392843583,1762037444659,-500.0,0.00036986,8]
[392843584,1762037444668,-501.97285014,0.00036986,8]
[392843585,1762037444678,-500.79768073,0.00036986,8]
[392843586,1762037444687,-500.78294035,0.00036986,8]
[392843587,1762037444697,-489.6101043,0.00036986,8]
[392843588,1762037444706,-500.0,0.00036986,8]
[392843589,1762037444716,-500.0,0.00036986,8]
[392843590,1762037444725,-500.0,0.00036986,8]
[392843591,1762037444734,-500.5462553,0.00036986,8]
[392843592,1762037444744,-502.48229652,0.00036986,8]
[392843593,1762037444753,-500.0,0.00036986,8]
[392843594,1762037444761,-501.84821156,0.00036986,8]
[392843595,1762037444770,-500.0,0.00036986,8]
[392843596,1762037444779,-595.52,0.00036986,8]
[392843597,1762037444788,-500.0,0.00036986,8]
[392843598,1762037444797,-500.0,0.00036986,8]
[392843599,1762037444806,-500.0,0.00036986,8]
[392843600,1762037444815,-500.0,0.00036986,8]
[392843601,1762037444824,-500.0,0.00036986,8]
[392843602,1762037444835,-500.0,0.00036986,8]
[392843603,1762037444844,-500.0,0.00036986,8]
[392843604,1762037444854,-500.0,0.00036986,8]
[392843605,1762037444863,-500.0,0.00036986,8]
[392843606,1762037444872,-500.0,0.00036986,8]
[392843607,1762037444882,-296.59574374,0.00036986,8]
[392843608,1762037444891,-500.0,0.00036986,8]
[392843609,1762037444900,-326.35246607,0.00036986,8]
[392843610,1762037444911,-500.0,0.00036986,8]
[392843611,1762037444920,-500.0,0.00036986,8]
[392843612,1762037444929,-500.0,0.00037025,8]
[392843613,1762037444939,-302.0,0.00037025,2]
[392843614,1762037444947,-151.0,0.00037025,2]
[392843615,1762037444957,-500.0,0.0003703,30]
[392843616,1762037444966,-302.0,0.00037032,2]
[392843617,1762037444975,-500.0,0.00037041,8]
[392843618,1762037444984,-302.0,0.00037049,2]
[392843619,1762037444994,-490.78188888,0.00037096,8]
[392843620,1762037445004,-266.75,0.00037259,8]
[392843621,1762037445013,-200.0,0.00037272,120]
[392843622,1762037445022,-339.0,0.00037345,120]
[392843623,1762037445031,-312.0,0.0003736,2]
[392843624,1762037445040,-305.45,0.00037414,8]
[392843625,1762037445049,-500.0,0.00037473,5]
[392843626,1762037445058,-500.64552957,0.00037473,5]
[392843627,1762037445071,-533.62323146,0.00037473,5]
[392843628,1762037445080,-500.64938753,0.00037473,5]
[392843629,1762037445090,-503.71743824,0.00037473,5]
[392843630,1762037445099,-257.27136681,0.00037473,5]
[392843631,1762037445108,-500.27944685,0.00037473,5]
[392843632,1762037445117,-158.45621051,0.00037473,5]
[392843633,1762037445126,-505.54950412,0.00037473,5]
[392843634,1762037445135,-500.0,0.00037473,5]
[392843635,1762037445143,-502.22966027,0.00037473,5]
[392843636,1762037445152,-500.0,0.00037473,5]
[392843637,1762037445161,-501.2734663,0.00037473,5]
[392843638,1762037445170,-501.31246667,0.00037473,5]
[392843639,1762037445179,-500.0,0.00037473,5]
[392843640,1762037445188,-500.52258998,0.00037473,5]
[392843641,1762037445197,-501.68310054,0.00037473,5]
[392843642,1762037445206,-500.62349917,0.00037473,5]
[392843643,1762037445215,-500.0,0.00037473,5]
[392843644,1762037445224,-500.0,0.00037489,8]
[392843645,1762037445234,-17034.33744704,0.0003749,3]
[392843652,1762037626953,338.453895,0.0003123,120]
[392843656,1762037815615,449.22382,0.00032,120]
[392843678,1762038553589,-150.0,0.00024853,2]
[392843679,1762038558970,2310.19609881,0.00024753,2]
[392843680,1762038568718,-455.0,0.00024853,2]
[392843681,1762038610098,5000.0,0.00025,2]
[392843707,1762038632255,5000.0,0.00025,2]
[392843709,1762038632291,-300.0,0.00025,2]
[392843712,1762038632303,-117.94558341,0.00026853,2]
[392843714,1762038632317,-59.05441659,0.00026853,2]
[392843716,1762038632327,-202.403766,0.000285,7]
[392843718,1762038632337,-204.0,0.00028853,2]
[392843721,1762038632349,-447.68027653,0.00030046,14]
[392843724,1762038632375,-557.07526072,0.00030046,14]
[392843727,1762038632386,-231.0,0.00030853,2]
[392843729,1762038632396,-1688.49551867,0.00030891,2]
[392843801,1762038640400,0.01,0.00025,2]
[392843802,1762038640429,4999.99,0.00025,2]
[392843834,1762038643181,-158.79657403,0.00030891,2]
[392843835,1762038643193,-800.0,0.00032272,3]
[392843836,1762038643203,-258.0,0.00032853,2]
[392843837,1762038643215,-202.403766,0.0003322,7]
[392843838,1762038643225,-230.79889298,0.00034547,4]
[392843839,1762038643240,-285.0,0.00034853,120]
[392843840,1762038643254,-151.0,0.00035,120]
[392843841,1762038643266,-200.0,0.00035259,3]
[392843844,1762038643276,-4021.1687,0.00036,10]
[392843845,1762038643288,-338.453895,0.00036435,120]
[392843846,1762038643297,-191.85,0.00036485,15]
[392843847,1762038643307,-1308.52817199,0.00036586,16]
[392843856,1762038656016,5000.0,0.00025,2]
[392843857,1762038663725,0.02,0.00025,2]
[392843858,1762038663749,4999.98,0.00025,2]
[392843859,1762038679258,5000.0,0.00025,2]
[392843860,1762038686985,0.03,0.00025,2]
[392843861,1762038687006,4999.97,0.00025,2]
[392843862,1762038703186,5000.0,0.00025,2]
[392843867,1762038919613,5000.0,0.00024853,2]
[392843873,1762039117146,3686.31,0.00032876,120]
[392843875,1762039248469,5017.55581688,0.00038019,120]
[392843879,1762039683481,4488.84404236,0.00021,5]
[392843881,1762039686034,5511.16595764,0.000125,2]
[392843882,1762039686057,6048.14655403,0.000125,2]
[392843883,1762039694519,2118.1419173,0.000176,2]
[392843884,1762039703636,7881.8680827,0.00017,2]
[392843885,1762039703664,22610.72008786,0.00017,2]
[392843886,1762039704168,3477.15574988,0.00022,5]
[392843887,1762039706157,10000.01,0.00015,2]
[392843888,1762039708538,629.01538956,0.00032876,120]
[392843890,1762039715117,306.79335909,0.00023,2]
[392843891,1762039718396,-348.72106765,0.000235,2]
[392843892,1762039725823,-651.27893235,0.000235,2]
[392843893,1762039747038,-6334.92398807,0.00024142,2]
[392843894,1762039747143,-10000.01,0.00024142,2]
[392843895,1762039749928,-10000.01,0.00024142,2]
[392843897,1762039752979,-10000.01,0.00024142,2]
[392843898,1762039753101,-10000.01,0.00024142,2]
[392843899,1762039759116,-10000.01,0.00024142,2]
[392843901,1762039765171,-10000.01,0.00024142,2]
[392843909,1762039818751,1055.85527153,0.00024042,2]
[392843944,1762039832303,-7998.09653367,0.00024142,2]
[392843946,1762039832313,-425.0,0.00024142,2]
[392843948,1762039832323,-16019.47405919,0.0002465,2]
[392843950,1762039832334,-3395.80783301,0.0002465,2]
[392843971,1762039838264,-1283.32675034,0.0002465,2]
[392843975,1762039840444,-15000.0,0.0002465,2]
[392844005,1762039843538,-4943.255742,0.0002465,2]
[392844006,1762039843548,-1654.2650276,0.0002472,2]
[392844007,1762039843558,-150.0,0.0002482,2]
[392844008,1762039843567,-2004.94254755,0.00025,2]
[392844009,1762039843576,-8967.2553349,0.00025,15]
[392844010,1762039843586,-792.10223156,0.00025,2]
[392844011,1762039843595,-177.0,0.0002682,2]
[392844012,1762039843605,-192.888392,0.000285,7]
[392844013,1762039843614,-204.0,0.0002882,2]
[392844014,1762039843624,-231.0,0.0003082,2]
[392844015,1762039843633,-258.0,0.0003282,2]
[392844016,1762039843642,-300.0,0.000329,2]
[392844017,1762039843651,-192.888392,0.00033095,7]
[392844018,1762039843661,-1654.26502753,0.00033289,2]
[392844019,1762039843670,-403.98447456,0.00034068,2]
[392844020,1762039843679,-285.0,0.0003482,120]
[392844021,1762039843689,-254.08996658,0.00035259,7]
[392844022,1762039843698,-151.0,0.0003599,15]
[392844023,1762039843707,-151.0,0.0003599,15]
[392844024,1762039843716,-151.0,0.0003599,15]
[392844025,1762039843725,-6650.8094022,0.00036152,2]
[392844026,1762039843735,-500.0,0.00036152,120]
[392844027,1762039843744,-500.0,0.00036152,120]
[392844028,1762039843758,-500.0,0.00036152,120]
[392844029,1762039843768,-500.065097,0.00036152,120]
[392844030,1762039843777,-30979.55182801,0.00036186,15]
[392844031,1762039843786,-151.0,0.00036186,15]
[392844032,1762039843797,-151.0,0.00036186,15]
[392844033,1762039843806,-151.0,0.00036186,15]
[392844034,1762039843815,-198.00119,0.00036186,31]
[392844035,1762039843824,-151.0,0.00036186,31]
[392844036,1762039843834,-151.0,0.00036186,2]
[392844037,1762039843843,-356.96816905,0.00036376,2]
[392844038,1762039843852,-3223.79877907,0.00036376,2]
[392844039,1762039843861,-356.96816904,0.00036382,2]
[392844040,1762039843870,-356.96816904,0.00036388,2]
[392844041,1762039843879,-356.96816904,0.00036394,2]
[392844042,1762039843888,-356.96816904,0.000364,2]
[392844043,1762039843898,-363.14,0.00036456,10]
[392844044,1762039843907,-151.0,0.00036464,2]
[392844045,1762039843917,-151.0,0.00036464,2]
[392844046,1762039843926,-151.0,0.00036464,2]
[392844047,1762039843935,-151.0,0.00036464,2]
[392844048,1762039843944,-151.0,0.00036464,2]
[392844049,1762039843953,-151.0,0.00036464,2]
[392844050,1762039843962,-151.0,0.00036464,2]
[392844051,1762039843972,-151.0,0.00036464,2]
[392844052,1762039843982,-151.0,0.00036464,2]
[392844053,1762039843992,-151.0,0.00036464,2]
[392844054,1762039844003,-151.0,0.00036464,2]
[392844055,1762039844012,-151.0,0.00036464,2]
[392844056,1762039844021,-151.0,0.00036464,2]
[392844057,1762039844030,-151.0,0.00036464,2]
[392844058,1762039844040,-151.0,0.00036464,2]
[392844059,1762039844049,-151.0,0.00036464,2]
[392844060,1762039844058,-151.0,0.00036464,2]
[392844061,1762039844067,-151.0,0.00036464,2]
[392844062,1762039844076,-151.0,0.00036464,2]
[392844063,1762039844085,-151.0,0.00036464,2]
[392844064,1762039844094,-843.52,0.00036466,3]
[392844065,1762039844103,-702.94,0.00036466,3]
[392844066,1762039844111,-351.47,0.00036466,3]
[392844067,1762039844120,-175.73,0.00036466,3]
[392844068,1762039844129,-527.24,0.00036466,3]
[392844069,1762039844138,-151.0,0.00036466,15]
[392844070,1762039844147,-151.0,0.00036466,15]
[392844071,1762039844156,-176.560609,0.00036466,15]
[392844072,1762039844165,-152.745095,0.00036466,31]
[392844073,1762039844174,-151.0,0.00036466,2]
[392844074,1762039844183,-133528.559465,0.00036466,3]
[392844075,1762039844192,-179.48787678,0.00036473,2]
[392844076,1762039844201,-151.0,0.00036476,7]
[392844077,1762039844210,-151.0,0.00036476,31]
[392844078,1762039844219,-151.0,0.00036476,31]
[392844079,1762039844228,-151.0,0.00036476,31]
[392844080,1762039844237,-151.0,0.00036476,31]
[392844081,1762039844247,-167.199372,0.00036476,31]
[392844082,1762039844255,-151.0,0.00036476,7]
[392844083,1762039844264,-151.0,0.00036476,31]
[392844084,1762039844272,-151.0,0.00036476,31]
[392844085,1762039844282,-162.862392,0.00036476,31]
[392844086,1762039844292,-151.0,0.00036476,31]
[392844087,1762039844301,-151.0,0.00036476,31]
[392844088,1762039844310,-972.453583,0.00036476,31]
[392844089,1762039844319,-972.453583,0.00036476,31]
[392844090,1762039844328,-972.453583,0.00036476,31]
[392844091,1762039844337,-972.453583,0.00036476,31]
[392844092,1762039844346,-972.453583,0.00036476,31]
[392844093,1762039844355,-972.453583,0.00036476,31]
[392844094,1762039844365,-972.453583,0.00036476,31]
[392844095,1762039844374,-972.453583,0.00036476,31]
[392844096,1762039844383,-151.0,0.00036476,31]
[392844097,1762039844392,-151.0,0.00036476,31]
[392844098,1762039844401,-151.0,0.00036476,31]
[392844099,1762039844411,-151.0,0.00036476,31]
[392844100,1762039844421,-151.0,0.00036476,31]
[392844101,1762039844433,-151.0,0.00036476,31]
[392844102,1762039844442,-246.628009,0.00036476,31]
[392844103,1762039844452,-151.0,0.00036476,31]
[392844104,1762039844463,-151.0,0.00036476,31]
[392844105,1762039844474,-151.0,0.00036476,31]
[392844106,1762039844484,-151.0,0.00036476,31]
[392844107,1762039844495,-151.0,0.00036476,31]
[392844108,1762039844505,-151.0,0.00036476,31]
[392844109,1762039844515,-151.0,0.00036476,31]
[392844110,1762039844525,-151.0,0.00036476,31]
[392844111,1762039844536,-155.236839,0.00036476,31]
[392844112,1762039844545,-151.0,0.00036476,31]
[392844113,1762039844557,-151.0,0.00036476,31]
[392844114,1762039844566,-151.0,0.00036476,7]
[392844115,1762039844577,-151.0,0.00036476,7]
[392844116,1762039844589,-151.0,0.00036476,7]
[392844117,1762039844598,-151.0,0.00036476,7]
[392844118,1762039844608,-151.0,0.00036476,31]
[392844119,1762039844619,-151.0,0.00036476,31]
[392844120,1762039844631,-151.0,0.00036476,31]
[392844121,1762039844641,-151.0,0.00036476,31]
[392844122,1762039844652,-151.0,0.00036476,15]
[392844123,1762039844663,-151.0,0.00036476,15]
[392844124,1762039844671,-269.163685,0.00036476,2]
[392844125,1762039844680,-111273.799554,0.00036476,3]
[392844126,1762039844688,-500.0,0.00036476,30]
[392844127,1762039844698,-201.22688375,0.00036485,10]
[392844128,1762039844707,-164.35355348,0.00036485,10]
[392844129,1762039844718,-163.085237,0.00036486,31]
[392844130,1762039844728,-151.0,0.00036486,31]
[392844131,1762039844737,-151.0,0.00036486,31]
[392844132,1762039844749,-151.0,0.00036486,31]
[392844133,1762039844759,-151.0,0.00036486,7]
[392844134,1762039844768,-151.0,0.00036486,31]
[392844135,1762039844777,-151.0,0.00036486,31]
[392844136,1762039844787,-181.059103,0.00036486,31]
[392844137,1762039844797,-972.453583,0.00036486,31]
[392844138,1762039844806,-972.453583,0.00036486,31]
[392844139,1762039844816,-972.453583,0.00036486,31]
[392844140,1762039844827,-972.453583,0.00036486,31]
[392844141,1762039844836,-151.0,0.00036486,31]
[392844142,1762039844845,-151.0,0.00036486,31]
[392844143,1762039844855,-151.0,0.00036486,31]
[392844144,1762039844864,-151.0,0.00036486,31]
[392844145,1762039844873,-151.0,0.00036486,31]
[392844146,1762039844882,-158.722956,0.00036486,31]
[392844147,1762039844891,-200.0,0.00036486,7]
[392844148,1762039844902,-200.0,0.00036486,7]
[392844149,1762039844911,-200.0,0.00036486,7]
[392844150,1762039844920,-200.0,0.00036486,7]
[392844151,1762039844929,-200.0,0.00036486,7]
[392844152,1762039844939,-151.0,0.00036486,31]
[392844153,1762039844949,-151.0,0.00036486,7]
[392844154,1762039844959,-153.309773,0.00036486,7]
[392844155,1762039844968,-151.0,0.00036486,31]
[392844156,1762039844980,-151.0,0.00036486,31]
[392844157,1762039844989,-151.0,0.00036486,15]
[392844158,1762039844998,-151.0,0.00036486,15]
[392844159,1762039845007,-157827.51232322,0.00036486,2]
[392844163,1762039879103,150.0,1.04e-06,2]
[392844164,1762039880146,150.0,1.04e-06,2]
[392844165,1762039881179,150.0,1.04e-06,2]
[392844166,1762039882280,150.0,1.04e-06,2]
[392844167,1762039883347,150.0,1.04e-06,2]
[392844168,1762039884514,150.0,1.04e-06,2]
[392844178,1762040078698,5000.0,0.00024142,2]
[392844180,1762040083415,356.353726,0.00013699,2]
[392844181,1762040083743,356.353726,0.00020187,2]
[392844182,1762040086787,513.5391568,0.00024142,2]
[392844183,1762040095088,1817.90811967,0.00024142,2]
[392844184,1762040095111,3182.09188033,0.00024142,2]
[392844186,1762040119446,5000.0,0.00024142,2]
[392844190,1762040142561,1817.91811967,0.00024142,2]
[392844191,1762040142584,3182.08188033,0.00024142,2]
[392844192,1762040164516,5000.0,0.00024142,2]
[392844194,1762040187125,1817.92811967,0.00024142,2]
[392844195,1762040187152,3182.07188033,0.00024142,2]
[392844196,1762040209431,5000.0,0.00024142,2]
[392844197,1762040231957,1817.93811967,0.00024142,2]
[392844198,1762040231982,126.79995682,0.00024142,2]
[392844199,1762040303915,5000.0,0.00024142,2]
[392844202,1762040421714,-204.0,0.00027671,25]
[392844203,1762040448177,169.082008,0.00015903,2]
[392844204,1762040504114,3262.64,0.0003287,120]
[392844224,1762040863265,-150.0,0.00024954,2]
[392844225,1762040863295,-356.353726,0.00026676,2]
[392844226,1762040912723,169.226947,0.00031488,120]
[392844227,1762040928861,2000.0,0.00032877,120]
[392844228,1762040946560,987.292548,0.00026953,2]
[392844231,1762041032401,-4002.707452,0.00026953,2]
[392844232,1762041032410,-177.0,0.00026954,2]
[392844233,1762041032419,-300.0,0.000277,2]
[392844234,1762041032428,-181.22845061,0.00028853,2]
[392844235,1762041032437,-1200.0,0.00028953,2]
[392844236,1762041032446,-204.0,0.00028954,2]
[392844237,1762041032455,-313.54321233,0.00030262,2]
[392844238,1762041032464,-231.0,0.00030954,2]
[392844240,1762041032473,-331.0,0.00031373,3]
[392844242,1762041032482,-377.93903673,0.00032909,2]
[392844244,1762041032492,-258.0,0.00032954,120]
[392844246,1762041032501,-400.0,0.00033164,2]
[392844248,1762041032510,-356.353726,0.00033165,2]
[392844250,1762041032519,-160.0,0.000332,2]
[392844251,1762041032528,-210.270533,0.00033248,7]
[392844252,1762041032536,-200.0,0.00033748,2]
[392844254,1762041032545,-403.98447456,0.0003404,2]
[392844256,1762041032554,-258.612146,0.0003439,2]
[392844258,1762041032563,-285.0,0.00034954,120]
[392844259,1762041032572,-799.0,0.00035969,3]
[392844260,1762041032581,-210.270533,0.00035985,7]
[392844261,1762041032589,-3173.99332132,0.0003599,2]
[392844262,1762041032628,-12797.01772786,0.0003599,2]
[392844294,1762041038456,-355.0,0.0003599,2]
[392844398,1762041040708,-27576.39084991,0.0003599,2]
[392844400,1762041040717,-161.0,0.00036,10]
[392844402,1762041040726,-166.485991,0.0003607,2]
[392844404,1762041040735,-153.279459,0.0003607,2]
[392844406,1762041040745,-177.8629766,0.00036085,15]
[392844408,1762041040754,-13276.95,0.00036086,15]
[392844410,1762041040763,-171.57893772,0.00036286,2]
[392844412,1762041040772,-2149.19918604,0.000363,2]
[392844414,1762041040782,-171.57893772,0.000363,2]
[392844416,1762041040791,-151.0,0.00036364,2]
[392844418,1762041040801,-151.0,0.00036364,2]
[392844420,1762041040810,-151.0,0.00036364,2]
[392844422,1762041040819,-151.0,0.00036364,2]
[392844424,1762041040828,-151.0,0.00036364,2]
[392844426,1762041040836,-151.0,0.00036364,2]
[392844428,1762041040845,-151.0,0.00036364,2]
[392844431,1762041040864,-151.0,0.00036364,2]
[392844433,1762041040875,-151.0,0.00036364,2]
[392844435,1762041040884,-151.0,0.00036364,2]
[392844437,1762041040894,-151.0,0.00036364,2]
[392844439,1762041040904,-151.0,0.00036364,2]
[392844441,1762041040913,-151.0,0.00036364,2]
[392844443,1762041040923,-151.0,0.00036364,2]
[392844445,1762041040933,-151.0,0.00036364,2]
[392844447,1762041040943,-151.0,0.00036364,2]
[392844449,1762041040952,-151.0,0.00036364,2]
[392844452,1762041040964,-151.0,0.00036364,2]
[392844454,1762041040974,-151.0,0.00036364,2]
[392844456,1762041040983,-151.0,0.00036364,2]
[392844458,1762041040992,-691.22,0.00036366,3]
[392844460,1762041041002,-345.61,0.00036366,3]
[392844462,1762041041011,-172.8,0.00036366,3]
[392844464,1762041041021,-518.43,0.00036366,3]
[392844466,1762041041030,-892.55,0.00036366,10]
[392844468,1762041041040,-153.86,0.00036366,10]
[392844470,1762041041049,-10168.0152612,0.00036366,3]
[392844472,1762041041058,-77452.95837727,0.00036376,3]
[392844623,1762041239541,304.72,0.000328,120]
[392844665,1762042232701,-150.0,0.00025291,2]
[392844668,1762042232713,-487.0,0.00025547,2]
[392844670,1762042232725,-176.0,0.00027123,14]
[392844672,1762042232736,-177.0,0.00027291,2]
[392844674,1762042232748,-204.0,0.00029291,2]
[392844677,1762042232760,-209.16811432,0.00029908,2]